fUST/lending_fUST_20250521
["ID","MTS","AMOUNT","RATE_DAILY","PERIOD"]
[361787718,1747789834407,-151.0,0.00017534,2]
[361787719,1747789834417,-374.545757,0.00017534,2]
[361787720,1747789834427,-151.0,0.00017534,2]
[361787721,1747789834437,-151.0,0.00017534,2]
[361787722,1747789834446,-1492.04,0.00017534,2]
[361787723,1747789834456,-430.0,0.00017534,2]
[361787724,1747789834466,-1125.95978342,0.00017555,2]
[361787725,1747789834476,-36319.44533517,0.000176,2]
[361787726,1747789834492,-6333.67103448,0.000176,2]
[361787727,1747789834506,-306.2747325,0.000176,2]
[361787728,1747789834519,-1953.592566,0.000176,2]
[361787729,1747789834532,-450.28335229,0.000176,2]
[361787738,1747789838108,-300.0,0.00015299,2]
[361787739,1747789838119,-151.0,0.0001659,2]
[361787740,1747789838129,-151.0,0.00016997,2]
[361787741,1747789838139,-3279.23061629,0.000176,2]
[361787742,1747789838149,-190.293978,0.00017605,2]
[361787743,1747789838158,-190.293978,0.00017605,2]
[361787744,1747789838167,-151.0,0.00017605,2]
[361787745,1747789838177,-151.0,0.00017636,2]
[361787747,1747789838187,-160.0,0.00017719,5]
[361787749,1747789838196,-160.0,0.00017724,2]
[361787751,1747789838206,-160.0,0.00017724,2]
[361787752,1747789838217,-207.4,0.00017796,2]
[361787754,1747789838226,-1492.04,0.00017808,2]
[361787756,1747789838236,-430.0,0.00017808,2]
[361787758,1747789838246,-1125.95978342,0.00017934,2]
[361787760,1747789838255,-160.0,0.00017998,2]
[361787762,1747789838265,-2000.0,0.00018,2]
[361787764,1747789838275,-12136.8,0.00018,2]
[361787765,1747789838286,-151.0,0.00018,2]
[361787767,1747789838295,-151.0,0.00018,2]
[361787769,1747789838304,-151.0,0.00018,2]
[361787771,1747789838314,-151.0,0.00018,2]
[361787773,1747789838325,-374.545757,0.00018,2]
[361787775,1747789838334,-151.0,0.00018,2]
[361787777,1747789838344,-151.0,0.00018,2]
[361787778,1747789838353,-190.293978,0.00018,2]
[361787780,1747789838362,-190.293978,0.00018,2]
[361787782,1747789838371,-151.0,0.00018,2]
[361787784,1747789838381,-1453.813986,0.00018,2]
[361787786,1747789838390,-1453.813986,0.00018,2]
[361787788,1747789838400,-151.0,0.00018,2]
[361787789,1747789838410,-151.0,0.00018,2]
[361787791,1747789838420,-183.473374,0.00018,2]
[361787793,1747789838429,-155.4835268,0.00018001,2]
[361787795,1747789838439,-153.0,0.00018001,2]
[361787797,1747789838448,-153.0,0.00018001,2]
[361787799,1747789838457,-351.319455,0.00018001,2]
[361787801,1747789838466,-153.0,0.00018001,2]
[361787802,1747789838476,-158.1192336,0.00018001,2]
[361787804,1747789838486,-158.1192336,0.00018001,2]
[361787806,1747789838495,-158.1192336,0.00018001,2]
[361787808,1747789838505,-569.8226027,0.00018001,2]
[361787810,1747789838514,-569.8226027,0.00018001,2]
[361787812,1747789838524,-500.0,0.00018009,2]
[361787813,1747789838533,-1492.04,0.00018082,2]
[361787815,1747789838544,-430.0,0.00018082,2]
[361787817,1747789838553,-437.12384016,0.00018228,2]
[361787819,1747789838562,-700.0,0.00018296,3]
[361787821,1747789838572,-569.8226027,0.000183,2]
[361787823,1747789838582,-158.1192336,0.000183,2]
[361787825,1747789838591,-389.485581,0.000183,2]
[361787827,1747789838601,-175.9147158,0.000183,2]
[361787828,1747789838611,-175.9907377,0.000183,2]
[361787830,1747789838622,-158.1192336,0.000183,2]
[361787832,1747789838631,-569.8226027,0.000183,2]
[361787834,1747789838641,-175.9907377,0.000183,2]
[361787836,1747789838650,-158.1192336,0.000183,2]
[361787838,1747789838659,-568.166141,0.000183,2]
[361787840,1747789838668,-175.9907377,0.000183,2]
[361787841,1747789838678,-569.8226027,0.000183,2]
[361787843,1747789838687,-158.1192336,0.000183,2]
[361787845,1747789838696,-175.6866501,0.000183,2]
[361787847,1747789838705,-569.8226027,0.000183,2]
[361787848,1747789838714,-158.1192336,0.000183,2]
[361787849,1747789838724,-158.1192336,0.000183,2]
[361787850,1747789838733,-569.8226027,0.000183,2]
[361787851,1747789838742,-569.8226027,0.000183,2]
[361787852,1747789838752,-568.9491852,0.000183,2]
[361787853,1747789838761,-1125.95978342,0.00018314,2]
[361787854,1747789838770,-1492.04,0.00018356,2]
[361787855,1747789838780,-213.8074484,0.00018356,2]
[361787856,1747789838790,-172.7063188,0.00018389,2]
[361787857,1747789838800,-158.1192336,0.00018389,2]
[361787858,1747789838810,-315.8112576,0.00018389,2]
[361787859,1747789838819,-569.8226027,0.00018389,2]
[361787860,1747789838829,-565.494565,0.00018389,2]
[361787861,1747789838839,-1492.04,0.0001863,2]
[361787862,1747789838849,-1125.95978342,0.00018693,2]
[361787863,1747789838858,-363.6221612,0.00018823,2]
[361787864,1747789838867,-203.75215319,0.00018877,2]
[361787865,1747789838877,-212.617066,0.00018877,2]
[361787866,1747789838887,-472.85129988,0.000189,2]
[361787867,1747789838897,-1492.04,0.00018904,2]
[361787868,1747789838906,-195.0,0.00019,5]
[361787869,1747789838916,-193.26344079,0.00019,5]
[361787870,1747789838925,-151.0,0.00019072,2]
[361787871,1747789838935,-1453.813986,0.00019072,2]
[361787872,1747789838948,-1453.813986,0.00019072,2]
[361787873,1747789838958,-1125.95978342,0.00019072,2]
[361787874,1747789838972,-175.469295,0.00019122,2]
[361787875,1747789838982,-151.0,0.00019122,2]
[361787876,1747789838991,-151.0,0.00019122,2]
[361787877,1747789839002,-374.545757,0.00019122,2]
[361787878,1747789839012,-151.0,0.00019122,2]
[361787879,1747789839021,-151.0,0.00019122,2]
[361787880,1747789839031,-190.293978,0.00019122,2]
[361787881,1747789839041,-190.293978,0.00019122,2]
[361787882,1747789839051,-1492.04,0.00019178,2]
[361787883,1747789839060,-193.846831,0.00019178,2]
[361787884,1747789839070,-151.0,0.00019348,2]
[361787885,1747789839079,-2000.0,0.00019398,3]
[361787886,1747789839089,-1125.95978342,0.00019452,2]
[361787887,1747789839098,-1492.04,0.00019452,2]
[361787888,1747789839108,-1492.04,0.00019726,2]
[361787889,1747789839118,-1125.95978342,0.00019831,2]
[361787890,1747789839128,-160.0,0.00019844,2]
[361787891,1747789839137,-160.0,0.00019844,2]
[361787892,1747789839147,-894.64583333,0.00019851,2]
[361787893,1747789839157,-422.65292303,0.00019851,2]
[361787894,1747789839166,-160.0,0.00019851,2]
[361787895,1747789839175,-12640.66806714,0.00019851,2]
[361787896,1747789839186,-151.0,0.00019894,2]
[361787897,1747789839195,-1453.813986,0.00019894,2]
[361787898,1747789839205,-1453.813986,0.00019894,2]
[361787899,1747789839214,-2000.0,0.00019899,3]
[361787900,1747789839224,-151.0,0.000199,2]
[361787901,1747789839233,-151.0,0.000199,2]
[361787902,1747789839243,-190.293978,0.00019912,2]
[361787903,1747789839253,-190.293978,0.00019912,2]
[361787904,1747789839262,-151.0,0.00019918,2]
[361787905,1747789839404,-374.545757,0.00019918,2]
[361787906,1747789839416,-200.991294,0.00019931,2]
[361787907,1747789839425,-547.0,0.00019954,2]
[361787908,1747789839435,-2235.0,0.00019954,2]
[361787910,1747789839444,-707.0,0.00019954,2]
[361787911,1747789839454,-151.0,0.00019974,2]
[361787912,1747789839464,-21171.89656411,0.0001999,2]
[361787914,1747789839474,-151.0,0.0001999,2]
[361787915,1747789839484,-374.545757,0.0001999,2]
[361787916,1747789839494,-151.0,0.0001999,2]
[361787918,1747789839503,-151.0,0.0001999,2]
[361787919,1747789839514,-190.293978,0.0001999,2]
[361787920,1747789839523,-190.293978,0.0001999,2]
[361787921,1747789839534,-151.0,0.0001999,2]
[361787923,1747789839544,-1453.813986,0.0001999,2]
[361787924,1747789839553,-1453.813986,0.0001999,2]
[361787926,1747789839569,-200.83575165,0.0002,2]
[361787928,1747789839579,-151.0,0.0002,2]
[361787930,1747789839588,-157.85,0.0002,2]
[361787931,1747789839598,-1492.04,0.0002,2]
[361787934,1747789839608,-160.0,0.0002,3]
[361787935,1747789839618,-437.12384016,0.00020119,2]
[361787937,1747789839628,-451.267288,0.00020187,2]
[361787939,1747789839637,-1125.95978342,0.0002021,2]
[361787941,1747789839646,-1234.37536114,0.00020273,2]
[361787944,1747789839660,-257.66463886,0.00020273,2]
[361787946,1747789839669,-662.55536114,0.00020498,3]
[361787948,1747789839683,-1337.44463886,0.00020498,3]
[361787950,1747789839693,-1492.04,0.00020547,2]
[361787952,1747789839703,-1125.95978342,0.0002059,3]
[361787954,1747789839713,-979.17209793,0.00020821,2]
[361787956,1747789839725,-512.86790207,0.00020821,2]
[361787958,1747789839735,-2000.0,0.00020898,4]
[361787960,1747789839744,-496.122,0.00020931,2]
[361787962,1747789839755,-151.0,0.00020935,2]
[361787964,1747789839764,-374.545757,0.00020935,2]
[361787966,1747789839774,-1125.95978342,0.00020969,4]
[361787968,1747789839784,-3809.31867322,0.00021,7]
[361787970,1747789839793,-151.0,0.00021,2]
[361787972,1747789839802,-60.72936152,0.00021,2]
[361787974,1747789839814,-90.27063848,0.00021,2]
[361787976,1747789839824,-190.293978,0.00021,2]
[361787977,1747789839833,-190.293978,0.00021,2]
[361787979,1747789839842,-151.0,0.00021,2]
[361787981,1747789839852,-1453.813986,0.00021,2]
[361787983,1747789839862,-1453.813986,0.00021,2]
[361787985,1747789839873,-151.0,0.00021095,2]
[361787987,1747789839882,-1492.04,0.00021095,2]
[361787989,1747789839892,-800.0,0.00021225,2]
[361787991,1747789839901,-2000.0,0.00021298,3]
[361787993,1747789839911,-1125.95978342,0.00021348,5]
[361787995,1747789839920,-1492.04,0.00021369,2]
[361787997,1747789839930,-500.0,0.00021627,2]
[361787999,1747789839939,-500.0,0.00021627,2]
[361788001,1747789839949,-500.07684562,0.00021627,2]
[361788003,1747789839962,-500.0,0.00021627,2]
[361788005,1747789839971,-1492.04,0.00021643,2]
[361788007,1747789839981,-1125.95978342,0.00021728,5]
[361788010,1747789839992,-786.372214,0.0002179,2]
[361788012,1747789840003,-2595.15,0.000219,2]
[361788014,1747789840012,-430.0,0.00021917,2]
[361788016,1747789840021,-430.0,0.00021917,2]
[361788019,1747789840032,-430.0,0.00021917,2]
[361788022,1747789840043,-331.532595,0.00021917,2]
[361788025,1747789840053,-242.275007,0.00021917,2]
[361788028,1747789840062,-500.0,0.00021917,2]
[361788030,1747789840072,-500.0,0.00021917,2]
[361788032,1747789840082,-500.0,0.00021917,2]
[361788034,1747789840091,-500.0,0.00021917,2]
[361788036,1747789840101,-598.28715431,0.00021917,2]
[361788038,1747789840112,-374.545757,0.00021917,2]
[361788040,1747789840124,-374.545757,0.00021917,2]
[361788042,1747789840138,-151.0,0.00021917,2]
[361788044,1747789840157,-262.913602,0.00021917,2]
[361788046,1747789840170,-190.293978,0.00021917,2]
[361788048,1747789840179,-190.293978,0.00021917,2]
[361788050,1747789840188,-151.0,0.00021917,2]
[361788052,1747789840198,-1453.813986,0.00021917,2]
[361788054,1747789840207,-1453.813986,0.00021917,2]
[361788056,1747789840217,-1492.04,0.00021917,2]
[361788058,1747789840227,-2627.07,0.00021917,2]
[361788060,1747789840237,-500.0,0.00021918,2]
[361788062,1747789840246,-500.0,0.00021918,2]
[361788064,1747789840256,-500.0,0.00021918,2]
[361788066,1747789840265,-500.0,0.00021918,2]
[361788068,1747789840274,-500.0,0.00021918,2]
[361788070,1747789840283,-500.0,0.00021918,2]
[361788072,1747789840293,-500.0,0.00021918,2]
[361788074,1747789840302,-500.0,0.00021918,2]
[361788076,1747789840312,-626.31122489,0.00021918,2]
[361788078,1747789840321,-500.0,0.00021918,2]
[361788080,1747789840331,-537.181,0.00021968,15]
[361788082,1747789840340,-50000.0,0.00022,30]
[361788084,1747789840350,-374.545757,0.00022,7]
[361788086,1747789840359,-374.545757,0.00022,7]
[361788088,1747789840369,-151.0,0.00022,2]
[361788089,1747789840378,-190.293978,0.00022,7]
[361788091,1747789840387,-190.293978,0.00022,7]
[361788093,1747789840396,-151.0,0.00022,7]
[361788095,1747789840406,-1453.813986,0.00022,7]
[361788097,1747789840416,-1453.813986,0.00022,7]
[361788099,1747789840425,-314.48519801,0.00022,30]
[361788101,1747789840435,-174.0,0.00022,2]
[361788103,1747789840445,-437.12384016,0.00022009,2]
[361788105,1747789840455,-5000.0,0.00022026,2]
[361788107,1747789840465,-1125.95978342,0.00022107,6]
[361788109,1747789840474,-1000.0,0.00022175,2]
[361788111,1747789840484,-1492.04,0.00022191,2]
[361788114,1747789840494,-535.71676038,0.000223,2]
[361788115,1747789840503,-800.0,0.00022321,2]
[361788117,1747789840513,-1492.04,0.00022465,2]
[361788119,1747789840522,-1125.95978342,0.00022486,7]
[361788121,1747789840532,-193.846831,0.00022603,2]
[361788123,1747789840541,-1500.0,0.00022723,2]
[361788125,1747789840551,-1492.15816443,0.00022739,2]
[361788127,1747789840561,-1000.0,0.000228,10]
[361788129,1747789840571,-212.38718278,0.000228,7]
[361788131,1747789840581,-1125.95978342,0.00022866,8]
[361788133,1747789840590,-547.0,0.00022954,2]
[361788135,1747789840600,-2235.0,0.00022954,2]
[361788137,1747789840609,-707.0,0.00022954,2]
[361788139,1747789840619,-374.545757,0.00022954,7]
[361788141,1747789840628,-374.545757,0.00022954,7]
[361788143,1747789840637,-151.0,0.00022954,2]
[361788145,1747789840647,-190.293978,0.00022954,7]
[361788146,1747789840656,-190.293978,0.00022954,7]
[361788148,1747789840667,-151.0,0.00022954,7]
[361788150,1747789840676,-1453.813986,0.00022954,7]
[361788152,1747789840686,-1453.81397656,0.00022954,7]
[361788154,1747789840695,-500.0,0.00023,30]
[361788156,1747789840704,-5000.0,0.00023,3]
[361788158,1747789840714,-2000.0,0.00023,3]
[361788160,1747789840724,-10000.0,0.00023,5]
[361788162,1747789840734,-5000.0,0.00023,15]
[361788164,1747789840744,-5000.0,0.00023,15]
[361788166,1747789840753,-5120.19427511,0.00023,6]
[361788168,1747789840766,-6491.94835633,0.00023,6]
[361788180,1747789840884,-50000.0,0.00017796,2]
[361788182,1747789840893,-212.38718278,0.00019844,2]
[361788185,1747789840906,-160787.61281722,0.00023,6]
[361788187,1747789840921,-1591.74456168,0.00023,6]
[361788190,1747789840936,-518.06967604,0.00023,6]
[361788320,1747789843341,-193.846831,0.00019178,2]
[361788322,1747789843353,-404.0,0.00019671,2]
[361788323,1747789843364,-404.0,0.00022671,2]
[361788325,1747789843376,-7462.103169,0.00023,6]
[361788342,1747789846392,-319915.17839692,0.00023,6]
[361788461,1747791032412,-384.81577874,0.00013426,2]
[361788483,1747791032630,-1022.6195265,0.00013426,2]
[361788534,1747791038400,-3546.78189728,0.00013426,2]
[361788536,1747791038411,-444.313509,0.00013699,2]
[361788538,1747791038421,-2404.8942993,0.0001546,2]
[361788540,1747791038431,-409.20093644,0.000159,2]
[361788542,1747791038441,-409.20093623,0.00016245,2]
[361788544,1747791038455,-1233.4606644,0.0001626,2]
[361788546,1747791038468,-16073.9772282,0.0001626,2]
[361788548,1747791038478,-205.9021066,0.00016428,2]
[361788550,1747791038493,-209.91252297,0.00016428,2]
[361788551,1747791038502,-216.13835571,0.00016437,2]
[361788552,1747791038513,-203.59294305,0.00016437,2]
[361788553,1747791038522,-500.0,0.00016437,2]
[361788554,1747791038532,-500.0,0.00016437,2]
[361788555,1747791038542,-500.0,0.00016437,2]
[361788556,1747791038551,-500.0,0.00016437,2]
[361788558,1747791038561,-500.0,0.00016437,2]
[361788559,1747791038570,-500.0,0.00016437,2]
[361788560,1747791038580,-500.0,0.00016437,2]
[361788561,1747791038590,-500.0,0.00016437,2]
[361788562,1747791038600,-500.0,0.00016437,2]
[361788563,1747791038611,-500.0,0.00016437,2]
[361788565,1747791038620,-500.0,0.00016437,2]
[361788566,1747791038629,-250.0,0.00016437,2]
[361788567,1747791038638,-250.0,0.00016437,2]
[361788568,1747791038647,-500.0,0.00016437,2]
[361788569,1747791038657,-250.0,0.00016437,2]
[361788570,1747791038666,-500.0,0.00016437,2]
[361788571,1747791038676,-621.49576996,0.00016437,2]
[361788572,1747791038685,-500.0,0.00016437,2]
[361788573,1747791038697,-500.0,0.00016437,2]
[361788574,1747791038706,-370.8143212,0.00016437,2]
[361788575,1747791038716,-500.0,0.00016438,2]
[361788576,1747791038726,-450.0,0.00016438,2]
[361788577,1747791038735,-450.0,0.00016438,2]
[361788578,1747791038745,-450.0,0.00016438,2]
[361788579,1747791038755,-450.0,0.00016438,2]
[361788580,1747791038765,-450.0,0.00016438,2]
[361788581,1747791038774,-430.0,0.00016438,2]
[361788582,1747791038784,-553.30592087,0.00016438,2]
[361788583,1747791038794,-168.27293029,0.00016438,2]
[361788584,1747791038804,-450.0,0.00016438,2]
[361788585,1747791038814,-194.66,0.00016438,2]
[361788586,1747791038825,-479.82949506,0.00016438,2]
[361788587,1747791038834,-450.0,0.00016438,2]
[361788588,1747791038845,-450.0,0.00016438,2]
[361788589,1747791038854,-450.0,0.00016438,2]
[361788590,1747791038864,-450.0,0.00016438,2]
[361788591,1747791038874,-450.0,0.00016438,2]
[361788592,1747791038883,-450.0,0.00016438,2]
[361788593,1747791038893,-215.87,0.00016438,2]
[361788594,1747791038903,-450.0,0.00016438,2]
[361788595,1747791038914,-450.0,0.00016438,2]
[361788596,1747791038924,-310.35355871,0.00016438,2]
[361788597,1747791038933,-450.0,0.00016438,2]
[361788598,1747791038944,-450.0,0.00016438,2]
[361788599,1747791038953,-450.0,0.00016438,2]
[361788600,1747791038963,-430.0,0.00016438,2]
[361788601,1747791038973,-430.0,0.00016438,2]
[361788602,1747791038982,-450.0,0.00016438,2]
[361788603,1747791038992,-450.0,0.00016438,2]
[361788604,1747791039002,-463.34,0.00016438,2]
[361788605,1747791039012,-450.0,0.00016438,2]
[361788606,1747791039022,-450.0,0.00016438,2]
[361788607,1747791039032,-450.0,0.00016438,2]
[361788608,1747791039260,-450.0,0.00016438,2]
[361788609,1747791039271,-450.0,0.00016438,2]
[361788610,1747791039282,-450.0,0.00016438,2]
[361788611,1747791039292,-239.12,0.00016438,2]
[361788612,1747791039304,-250.06348451,0.00016438,2]
[361788613,1747791039316,-347.8696684,0.00016438,2]
[361788614,1747791039326,-450.0,0.00016438,2]
[361788615,1747791039337,-430.0,0.00016438,2]
[361788616,1747791039347,-446.38,0.00016438,2]
[361788617,1747791039357,-450.0,0.00016438,2]
[361788618,1747791039369,-450.0,0.00016438,2]
[361788619,1747791039379,-450.0,0.00016438,2]
[361788620,1747791039388,-450.0,0.00016438,2]
[361788621,1747791039398,-450.0,0.00016438,2]
[361788622,1747791039409,-450.0,0.00016438,2]
[361788623,1747791039419,-500.43,0.00016438,2]
[361788624,1747791039430,-450.0,0.00016438,2]
[361788625,1747791039439,-450.0,0.00016438,2]
[361788626,1747791039451,-514.57,0.00016438,2]
[361788627,1747791039461,-450.0,0.00016438,2]
[361788628,1747791039470,-430.0,0.00016438,2]
[361788629,1747791039480,-166.89096403,0.00016438,2]
[361788630,1747791039489,-209.35958231,0.00016438,2]
[361788631,1747791039498,-409.20093623,0.0001659,2]
[361788632,1747791039509,-500.0,0.00016711,2]
[361788633,1747791039519,-500.0,0.00016711,2]
[361788634,1747791039528,-500.0,0.00016711,2]
[361788635,1747791039539,-237.41891045,0.00016711,2]
[361788636,1747791039548,-500.0,0.00016711,2]
[361788637,1747791039558,-569.60171338,0.00016711,2]
[361788638,1747791039568,-500.0,0.00016711,2]
[361788639,1747791039578,-500.0,0.00016711,2]
[361788640,1747791039587,-459.24618353,0.00016711,2]
[361788641,1747791039596,-500.0,0.00016711,2]
[361788642,1747791039606,-539.15,0.00016712,2]
[361788643,1747791039618,-430.0,0.00016712,2]
[361788644,1747791039629,-430.0,0.00016712,2]
[361788645,1747791039640,-463.34,0.00016712,2]
[361788646,1747791039650,-430.0,0.00016712,2]
[361788647,1747791039660,-275.26820965,0.00016712,2]
[361788648,1747791039669,-500.0,0.00016867,2]
[361788649,1747791039679,-191.66117094,0.00016867,2]
[361788650,1747791039688,-500.0,0.00016867,2]
[361788651,1747791039697,-409.20093623,0.00016934,2]
[361788652,1747791039707,-430.0,0.00016986,2]
[361788653,1747791039717,-430.0,0.00016986,2]
[361788654,1747791039727,-463.34,0.00016986,2]
[361788655,1747791039736,-430.0,0.00016986,2]
[361788656,1747791039747,-212.38718278,0.00016997,3]
[361788657,1747791039756,-9542.60480248,0.00016997,3]
[361788658,1747791039766,-894.64583333,0.00016997,3]
[361788659,1747791039775,-430.0,0.0001726,2]
[361788660,1747791039785,-430.0,0.0001726,2]
[361788661,1747791039794,-463.34,0.0001726,2]
[361788662,1747791039804,-244.0,0.0001726,2]
[361788663,1747791039813,-409.20093623,0.00017279,2]
[361788664,1747791039823,-500.0,0.0001741,2]
[361788665,1747791039843,-430.0,0.00017534,2]
[361788666,1747791039853,-430.0,0.00017534,2]
[361788667,1747791039863,-463.34,0.00017534,2]
[361788668,1747791039872,-409.20093623,0.00017624,2]
[361788669,1747791039882,-174.32,0.00017808,2]
[361788670,1747791039891,-430.0,0.00017808,2]
[361788671,1747791039900,-463.34,0.00017808,2]
[361788672,1747791039910,-160.0,0.00017811,2]
[361788673,1747791039920,-894.64583333,0.00017811,2]
[361788674,1747791039929,-422.65292303,0.00017811,2]
[361788675,1747791039938,-160.0,0.00017811,2]
[361788676,1747791039960,-12640.66806714,0.00017811,2]
[361788678,1747791039970,-160.0,0.00017811,2]
[361788680,1747791039979,-160.0,0.00017811,2]
[361788681,1747791039989,-409.20093623,0.00017969,2]
[361788682,1747791039999,-430.0,0.00018082,2]
[361788684,1747791040010,-463.34,0.00018082,2]
[361788685,1747791040020,-409.20093623,0.00018314,2]
[361788686,1747791040030,-430.0,0.00018356,2]
[361788687,1747791040039,-463.34,0.00018356,2]
[361788688,1747791040049,-286.65,0.0001863,2]
[361788689,1747791040058,-463.34,0.0001863,2]
[361788690,1747791040067,-409.20093623,0.00018659,2]
[361788691,1747791040077,-463.34,0.00018904,2]
[361788692,1747791040087,-409.20093623,0.00019003,2]
[361788694,1747791040097,-463.34,0.00019178,2]
[361788696,1747791040107,-196.424093,0.00019178,2]
[361788698,1747791040116,-409.20093623,0.00019348,2]
[361788700,1747791040126,-463.34,0.00019452,2]
[361788702,1747791040135,-409.20093623,0.00019693,2]
[361788703,1747791040145,-463.34,0.00019726,2]
[361788704,1747791040155,-547.0,0.00019873,2]
[361788705,1747791040164,-2235.0,0.00019873,2]
[361788706,1747791040174,-157.85,0.0002,2]
[361788707,1747791040183,-463.34,0.0002,2]
[361788708,1747791040193,-409.20093623,0.00020038,2]
[361788709,1747791040202,-444.313509,0.00020187,2]
[361788710,1747791040212,-463.34,0.00020273,2]
[361788711,1747791040223,-409.20093623,0.00020383,3]
[361788712,1747791040232,-463.34,0.00020547,2]
[361788713,1747791040243,-409.20093623,0.00020728,3]
[361788714,1747791040252,-463.34,0.00020821,2]
[361788715,1747791040262,-452.67947265,0.000209,2]
[361788716,1747791040272,-396.898,0.0002091,2]
[361788717,1747791040282,-881.19333803,0.00020937,2]
[361788718,1747791040292,-409.20093623,0.00021072,4]
[361788719,1747791040302,-463.34,0.00021095,2]
[361788720,1747791040311,-700.0,0.00021225,2]
[361788721,1747791040320,-463.34,0.00021369,2]
[361788722,1747791040330,-409.20093623,0.00021417,5]
[361788723,1747791040340,-463.34,0.00021643,2]
[361788724,1747791040350,-409.20093623,0.00021762,5]
[361788725,1747791040360,-181.82360632,0.000219,2]
[361788726,1747791040374,-463.34,0.00021917,2]
[361788727,1747791040384,-2523.03,0.00021917,2]
[361788728,1747791040394,-251.01,0.00022,2]
[361788729,1747791040407,-175.0,0.00022,2]
[361788730,1747791040421,-409.20093623,0.00022107,6]
[361788731,1747791040430,-463.34,0.00022191,2]
[361788732,1747791040441,-700.0,0.00022321,2]
[361788733,1747791040454,-409.20093623,0.00022452,7]
[361788734,1747791040464,-463.34,0.00022465,2]
[361788735,1747791040473,-673.96702,0.00022494,2]
[361788736,1747791040483,-463.37671289,0.00022739,2]
[361788737,1747791040493,-409.20093623,0.00022797,7]
[361788738,1747791040503,-181.82360629,0.00022863,2]
[361788739,1747791040513,-543.764,0.00022873,2]
[361788740,1747791040522,-2235.0,0.00022873,2]
[361788741,1747791040531,-124260.43352861,0.00023,6]
[361788742,1747791040548,-28231.87461066,0.00023,6]
[361788743,1747791040560,-667.58803514,0.00023,6]
[361788744,1747791040571,-1056.37985105,0.00023,6]
[361788745,1747791040783,-187.25937885,0.00016438,2]
[361788746,1747791040794,-446.74062115,0.00019873,2]
[361788749,1747791042396,-260.25937885,0.00019873,2]
[361788750,1747791042406,-707.0,0.00022873,2]
[361788751,1747791042416,-1212.94581559,0.00023,6]
[361788763,1747791043533,-3239.21286451,0.00023,6]
[361788764,1747791043545,-275.08589369,0.00023,6]
[361788765,1747791043618,-6859.99886196,0.00023,6]
[361788766,1747791043630,-2035.65963634,0.00023,6]
[361788767,1747791043641,-1685.7641969,0.00023,6]
[361788779,1747791046544,-159.72618331,0.00016274,2]
[361788781,1747791046555,-252.15678591,0.00019873,2]
[361788794,1747791970447,158.459,0.0002,120]
[361788810,1747792232660,-160.0,0.00013562,2]
[361788811,1747792232671,-399.882158,0.00013699,2]
[361788812,1747792232681,-2821.1792967,0.0001577,2]
[361788813,1747792232690,-261.35040086,0.00016337,2]
[361788815,1747792232700,-1200.0,0.00016437,2]
[361788817,1747792232710,-213.55702116,0.00016437,2]
[361788888,1747792238565,-86.44297884,0.00016437,2]
[361788889,1747792238575,-300.0,0.00016437,2]
[361788890,1747792238585,-451.62085153,0.00016438,2]
[361788891,1747792238594,-430.0,0.00016438,2]
[361788892,1747792238603,-399.88265152,0.00016438,2]
[361788893,1747792238612,-215.9041686,0.00016438,2]
[361788894,1747792238622,-159.91641071,0.00016438,2]